lending/lending_fUSD_20260306
["ID","MTS","AMOUNT","RATE_DAILY","PERIOD"]
[407801584,1772808675847,-500.0,0.00042739,120]
[407801585,1772808675857,-500.0,0.00042739,120]
[407801586,1772808675867,-500.0,0.00042739,120]
[407801587,1772808675877,-500.0,0.00042739,120]
[407801588,1772808675886,-500.0,0.00042739,120]
[407801589,1772808675896,-500.0,0.00042739,120]
[407801590,1772808675909,-500.0,0.00042739,120]
[407801591,1772808675919,-500.0,0.00042739,120]
[407801592,1772808675929,-500.0,0.00042739,120]
[407801593,1772808675940,-500.0,0.00042739,120]
[407801594,1772808675950,-500.0,0.00042739,120]
[407801595,1772808675960,-500.0,0.00042739,120]
[407801596,1772808675970,-366.39006383,0.00042739,120]
[407801597,1772808675982,-746.0,0.0004274,120]
[407801598,1772808675991,-746.0,0.0004274,120]
[407801599,1772808676001,-4000.0,0.0004274,14]
[407801600,1772808676011,-953.09695486,0.0004274,10]
[407801601,1772808676021,-900.0,0.0004274,10]
[407801602,1772808676031,-450.0,0.0004274,10]
[407801603,1772808676041,-450.0,0.0004274,10]
[407801604,1772808676052,-614.44737,0.0004274,120]
[407801605,1772808676062,-417.08983456,0.0004274,10]
[407801606,1772808676072,-237.39121081,0.0004275,30]
[407801607,1772808676082,-159.49661076,0.0004275,30]
[407801608,1772808676093,-178.56416906,0.0004275,30]
[407801609,1772808676103,-196.401106,0.0004275,30]
[407801610,1772808676114,-259.39398879,0.0004275,30]
[407801611,1772808676124,-496.10721813,0.0004275,30]
[407801612,1772808676134,-150.0,0.00042754,30]
[407801613,1772808676144,-150.0,0.00042754,30]
[407801614,1772808676153,-150.0,0.00042772,30]
[407801615,1772808676163,-150.0,0.0004278,30]
[407801616,1772808676173,-237.39121081,0.00042798,30]
[407801617,1772808676183,-159.49661076,0.00042798,30]
[407801618,1772808676192,-178.56416906,0.00042798,30]
[407801619,1772808676201,-196.401106,0.00042798,30]
[407801620,1772808676211,-259.39398879,0.00042798,30]
[407801621,1772808676221,-496.10721813,0.00042798,30]
[407801622,1772808676230,-150.0,0.00042799,30]
[407801623,1772808676240,-150.0,0.00042799,30]
[407801624,1772808676250,-150.0,0.00042822,30]
[407801625,1772808676261,-150.0,0.00042838,30]
[407801626,1772808676271,-237.39121081,0.00042845,30]
[407801627,1772808676281,-159.49661076,0.00042845,30]
[407801628,1772808676292,-178.56416906,0.00042845,30]
[407801629,1772808676303,-150.0,0.00042845,30]
[407801630,1772808676313,-196.401106,0.00042845,30]
[407801631,1772808676324,-259.39398879,0.00042845,30]
[407801632,1772808676334,-496.10721813,0.00042845,30]
[407801633,1772808676344,-500.0,0.00042849,120]
[407801634,1772808676354,-500.0,0.00042849,120]
[407801635,1772808676364,-1000.0,0.00042856,30]
[407801636,1772808676374,-1042.7,0.00042861,30]
[407801637,1772808676384,-150.0,0.00042866,30]
[407801638,1772808676394,-150.0,0.0004287,30]
[407801639,1772808676403,-150.0,0.00042873,30]
[407801640,1772808676413,-237.39121081,0.00042893,30]
[407801641,1772808676427,-159.49661076,0.00042893,30]
[407801642,1772808676437,-178.56416906,0.00042893,30]
[407801643,1772808676447,-196.401106,0.00042893,30]
[407801644,1772808676457,-259.39398879,0.00042893,30]
[407801645,1772808676467,-496.10721813,0.00042893,30]
[407801646,1772808676477,-150.0,0.00042922,30]
[407801647,1772808676487,-150.0,0.00042924,30]
[407801648,1772808676497,-150.0,0.00042927,30]
[407801649,1772808676507,-150.0,0.00042927,30]
[407801650,1772808676516,-237.39121081,0.00042941,30]
[407801651,1772808676528,-159.49661076,0.00042941,30]
[407801652,1772808676538,-178.56416906,0.00042941,30]
[407801653,1772808676548,-196.401106,0.00042941,30]
[407801654,1772808676566,-259.39398879,0.00042941,30]
[407801655,1772808676973,-150.0,0.00042941,30]
[407801656,1772808676982,-496.10721813,0.00042941,30]
[407801657,1772808676992,-150.0,0.00042961,30]
[407801658,1772808677002,-150.0,0.00042974,30]
[407801659,1772808677011,-150.0,0.00042978,30]
[407801660,1772808677021,-500.0,0.00042986,120]
[407801661,1772808677030,-500.0,0.00042986,120]
[407801662,1772808677040,-237.39121081,0.00042988,30]
[407801663,1772808677053,-159.49661076,0.00042988,30]
[407801664,1772808677062,-178.56416906,0.00042988,30]
[407801665,1772808677072,-196.401106,0.00042988,30]
[407801666,1772808677082,-259.39398879,0.00042988,30]
[407801667,1772808677092,-496.10721813,0.00042988,30]
[407801668,1772808677101,-1728.15071473,0.00043,2]
[407801669,1772808677110,-214.0,0.00043,7]
[407801670,1772808677119,-18947.47829789,0.00043,10]
[407801671,1772808677129,-3963.3325849,0.00043,30]
[407801672,1772808677139,-237.3074631,0.00043,120]
[407801673,1772808677149,-1676.76505803,0.00043,120]
[407801674,1772808677159,-757.69555188,0.00043,10]
[407801675,1772808677170,-314.1568156,0.00043,30]
[407801676,1772808677181,-4401.0,0.00043,5]
[407801677,1772808677191,-299.0,0.00043,120]
[407801678,1772808677201,-150.0,0.00043006,30]
[407801679,1772808677212,-150.0,0.00043006,30]
[407801680,1772808677221,-360.0,0.00043007,90]
[407801681,1772808677233,-2500.0,0.00043013,120]
[407801682,1772808677243,-2500.0,0.00043013,120]
[407801683,1772808677252,-1285.97357031,0.00043013,120]
[407801684,1772808677262,-746.0,0.00043014,120]
[407801685,1772808677272,-746.0,0.00043014,120]
[407801686,1772808677282,-150.0,0.00043025,30]
[407801687,1772808677293,-1102.1,0.00043035,90]
[407801688,1772808677306,-237.39121081,0.00043036,30]
[407801689,1772808677315,-159.49661076,0.00043036,30]
[407801690,1772808677325,-178.56416906,0.00043036,30]
[407801691,1772808677335,-196.401106,0.00043036,30]
[407801692,1772808677344,-259.39398879,0.00043036,30]
[407801693,1772808677353,-496.10721813,0.00043036,30]
[407801694,1772808677364,-150.0,0.00043051,30]
[407801695,1772808677374,-150.0,0.00043054,30]
[407801696,1772808677383,-150.0,0.00043054,30]
[407801697,1772808677393,-200.0,0.00043068,120]
[407801698,1772808677402,-200.0,0.00043068,120]
[407801699,1772808677412,-200.0,0.00043068,120]
[407801700,1772808677422,-200.0,0.00043068,120]
[407801701,1772808677432,-200.0,0.00043068,120]
[407801702,1772808677441,-160.19,0.00043068,120]
[407801703,1772808677453,-200.0,0.00043068,120]
[407801704,1772808677463,-200.0,0.00043068,120]
[407801705,1772808677473,-150.0,0.00043076,30]
[407801706,1772808677484,-237.39121081,0.00043083,30]
[407801707,1772808677494,-159.49661076,0.00043083,30]
[407801708,1772808677503,-178.56416906,0.00043083,30]
[407801709,1772808677513,-196.401106,0.00043083,30]
[407801710,1772808677523,-259.39398879,0.00043083,30]
[407801711,1772808677532,-496.10721813,0.00043083,30]
[407801712,1772808677542,-150.0,0.0004309,30]
[407801713,1772808677553,-150.0,0.0004309,30]
[407801714,1772808677562,-500.0,0.00043123,120]
[407801715,1772808677572,-500.0,0.00043123,120]
[407801716,1772808677581,-150.0,0.00043126,30]
[407801717,1772808677590,-1000.0,0.0004313,30]
[407801718,1772808677599,-237.39121081,0.00043131,30]
[407801719,1772808677609,-159.49661076,0.00043131,30]
[407801720,1772808677619,-178.56416906,0.00043131,30]
[407801721,1772808677628,-196.401106,0.00043131,30]
[407801722,1772808677638,-259.39398879,0.00043131,30]
[407801723,1772808677648,-496.10721813,0.00043131,30]
[407801724,1772808677658,-150.0,0.00043142,30]
[407801725,1772808677668,-151.5,0.00043153,60]
[407801726,1772808677677,-150.0,0.00043174,30]
[407801727,1772808677687,-150.0,0.00043177,30]
[407801728,1772808677697,-237.39121081,0.00043179,30]
[407801729,1772808677707,-159.49661076,0.00043179,30]
[407801730,1772808677719,-178.56416906,0.00043179,30]
[407801731,1772808677728,-196.401106,0.00043179,30]
[407801732,1772808677738,-259.39398879,0.00043179,30]
[407801733,1772808677748,-496.10721813,0.00043179,30]
[407801734,1772808677757,-150.0,0.00043181,30]
[407801735,1772808677767,-150.0,0.00043181,30]
[407801736,1772808677778,-162.395,0.00043199,60]
[407801737,1772808677787,-150.0,0.00043203,30]
[407801738,1772808677797,-151.0,0.00043207,120]
[407801739,1772808677810,-368470.52697141,0.0004321,120]
[407801740,1772808678354,-2055.0,0.0004321,120]
[407801741,1772808678529,-765.469895,0.00036791,7]
[407801742,1772808678539,-79.75302641,0.00041096,120]
[407801743,1772808680250,-2288.05551296,0.00017382,2]
[407801744,1772808680261,-373.26594713,0.00017382,2]
[407801745,1772808680345,-258.63162805,0.00017382,2]
[407801746,1772808680878,-464.40017959,0.00017382,2]
[407801747,1772808680891,-533.02580842,0.00017382,2]
[407801748,1772808680961,-6851.493134,0.00017382,2]
[407801749,1772808680973,-163.90180082,0.00017382,2]
[407801750,1772808680984,-334.93,0.00018845,2]
[407801751,1772808680994,-334.93,0.00020867,2]
[407801752,1772808681003,-334.93,0.00021934,2]
[407801753,1772808681012,-223.29,0.00023293,2]
[407801754,1772808681021,-223.29,0.00023585,2]
[407801755,1772808681031,-150.0,0.00024658,2]
[407801756,1772808681041,-235.72819918,0.00025803,2]
[407801757,1772808681052,-2223.27180082,0.00025803,2]
[407801758,1772808681065,-150.0,0.0002589,2]
[407801759,1772808681075,-150.0,0.00027185,2]
[407801760,1772808681084,-496.60968372,0.00028767,2]
[407801761,1772808681093,-2459.0,0.00028803,2]
[407801762,1772808681103,-2459.0,0.00031803,2]
[407801763,1772808681112,-2459.0,0.00034803,2]
[407801764,1772808681121,-2459.0,0.00037803,2]
[407801765,1772808681131,-150.92,0.0004,2]
[407801766,1772808681140,-150.92,0.0004,2]
[407801767,1772808681149,-150.92,0.0004,2]
[407801768,1772808681158,-150.92,0.0004,2]
[407801769,1772808681167,-150.92,0.0004,2]
[407801770,1772808681176,-150.92,0.0004,2]
[407801771,1772808681185,-150.92,0.0004,2]
[407801772,1772808681194,-150.92,0.0004,2]
[407801773,1772808681203,-150.92,0.0004,2]
[407801774,1772808681212,-150.92,0.0004,2]
[407801775,1772808681221,-150.92,0.0004,2]
[407801776,1772808681230,-150.92,0.0004,2]
[407801777,1772808681240,-150.92,0.0004,2]
[407801778,1772808681250,-150.92,0.0004,2]
[407801779,1772808681260,-150.92,0.0004,2]
[407801780,1772808681270,-150.92,0.0004,2]
[407801781,1772808681280,-150.92,0.0004,2]
[407801782,1772808681290,-150.92,0.0004,2]
[407801783,1772808681299,-150.92,0.0004,2]
[407801784,1772808681314,-150.92,0.0004,2]
[407801785,1772808681323,-150.92,0.0004,2]
[407801786,1772808681332,-150.92,0.0004,2]
[407801787,1772808681342,-150.92,0.0004,2]
[407801788,1772808681351,-150.92,0.0004,2]
[407801789,1772808681360,-150.92,0.0004,2]
[407801790,1772808681370,-150.92,0.0004,2]
[407801791,1772808681380,-150.92,0.0004,2]
[407801792,1772808681397,-150.92,0.0004,2]
[407801793,1772808681416,-150.92,0.0004,2]
[407801794,1772808681426,-150.92,0.0004,2]
[407801795,1772808681435,-150.92,0.0004,2]
[407801796,1772808681444,-150.92,0.0004,2]
[407801797,1772808681453,-150.92,0.0004,2]
[407801798,1772808681463,-150.92,0.0004,2]
[407801799,1772808681472,-150.92,0.0004,2]
[407801800,1772808681482,-2276.70790793,0.00040803,2]
[407801801,1772808721107,152.26,0.00014448,2]
[407801840,1772808842005,543.0,0.00014,2]
[407801934,1772809057509,20465.67258241,0.00017,120]
[407801935,1772809058181,243.05,7.551e-05,2]
[407801936,1772809058396,243.05,7.948e-05,2]
[407801937,1772809058603,243.05,8.345e-05,2]
[407801938,1772809058818,243.05,8.743e-05,2]
[407801939,1772809059082,243.05,9.14e-05,2]
[407801940,1772809059524,243.05,9.538e-05,2]
[407801941,1772809059722,243.05,9.935e-05,2]
[407801942,1772809059918,243.05,0.00010332,2]
[407801943,1772809060226,243.05,0.0001073,2]
[407801944,1772809060427,243.05,0.00011127,2]
[407801945,1772809060633,243.05,0.00011525,2]
[407801946,1772809060837,243.05,0.00011922,2]
[407801947,1772809061067,243.05,0.00012319,2]
[407801948,1772809061484,243.05,0.00012717,2]
[407801949,1772809061705,243.05,0.00013114,2]
[407801950,1772809061901,243.05,0.00013512,2]
[407801951,1772809062099,243.05,0.00013909,2]
[407801952,1772809062346,243.05,0.00014306,2]
[407801953,1772809097254,5082.11,0.0001449,2]
[407801954,1772809097284,9073.89290144,0.0001449,2]
[407801957,1772809162282,5000.0,0.0001641,120]
[407801958,1772809195014,10000.01,9.95e-05,2]
[407801959,1772809195039,10000.01,9.95e-05,2]
[407801960,1772809195067,478.1797549,9.95e-05,2]
[407801961,1772809200760,74534.32741759,0.000163,120]
[407801962,1772809203608,543.7397,0.00013333,2]
[407801963,1772809205904,1055.11455448,0.00011,2]
[407801966,1772809229935,495.17975,0.00013333,2]
[407801968,1772809260656,319.4859346,0.0001449,2]
[407801969,1772809261034,151.0,0.0001449,2]
[407801970,1772809262026,159.7429673,0.0001449,2]
[407801971,1772809337430,1466.01020663,0.0001,2]
[407801976,1772809357583,65318.18979337,9.5e-05,3]
[407801983,1772809433709,543.0,0.00013333,2]
[407801991,1772809530093,-300.0,0.00014666,2]
[407801992,1772809530114,-1298.62747385,0.00014667,2]
[407801993,1772809544841,201.8,0.00014593,2]
[407801994,1772809544868,278.396095,0.00014593,2]
[407801995,1772809577583,135.603905,0.0001,2]
[407801996,1772809577609,481.29436544,0.0001,2]
[407801997,1772809604108,-1276.7170625,0.00014667,2]
[407801998,1772809642535,500.0,0.00011333,2]
[407801999,1772809645095,-1311.61914024,0.00014667,2]
[407802001,1772809745847,191.47,0.00014433,2]
[407802002,1772809746918,250.0,0.0001455,2]
[407802003,1772809747176,288.823567,0.00014623,2]
[407802004,1772809747202,1.09535759,0.00014623,2]
[407802009,1772809769195,-1113.03632341,0.00014667,2]
[407802010,1772809769219,-600.0,0.00014667,2]
[407802011,1772809769243,-159.7429673,0.00014667,2]
[407802012,1772809769264,-489.4312264,0.00014682,2]
[407802019,1772809831549,-110.5687736,0.00014682,2]
[407802021,1772809831557,-450.30792586,0.00014682,2]
[407802022,1772809831652,-149.69207414,0.00014682,2]
[407802023,1772809831661,-600.0,0.00014682,2]
[407802024,1772809831669,-250.0,0.00014683,2]
[407802025,1772809831678,-300.0,0.00014684,2]
[407802026,1772809831686,-200.0,0.00014686,2]
[407802027,1772809831696,-185.0,0.00014688,2]
[407802028,1772809831705,-300.0,0.00014688,2]
[407802029,1772809831713,-300.0,0.00014688,2]
[407802030,1772809831722,-300.0,0.00014688,2]
[407802031,1772809831730,-300.0,0.00014688,2]
[407802032,1772809831739,-1200.0,0.00014688,2]
[407802033,1772809831747,-243.05,0.00014704,2]
[407802034,1772809831756,-500.0,0.00014704,2]
[407802035,1772809831771,-104.68648391,0.00014704,2]
[407802036,1772809831783,-395.31351609,0.00014704,2]
[407802037,1772809831792,-500.0,0.00014704,2]
[407802038,1772809831801,-500.0,0.00014704,2]
[407802039,1772809831811,-298.41055689,0.00014704,2]
[407802040,1772809831821,-352.96078186,0.00014954,2]
[407802041,1772809831832,-569.13169042,0.00014954,2]
[407802042,1772809831937,-1106.3481862,0.00014954,2]
[407802043,1772809831949,-1211.55934152,0.00014954,2]
[407802044,1772809831957,-200.0,0.00014954,2]
[407802045,1772809831967,-1226.43,0.0001497,2]
[407802046,1772809831977,-250.0,0.00015,2]
[407802047,1772809831986,-151.0,0.00015,2]
[407802049,1772809831995,-150.0,0.00015042,2]
[407802050,1772809832004,-200.0,0.00015042,2]
[407802052,1772809832013,-350.90324809,0.00015084,2]
[407802054,1772809832108,-149.09675191,0.00015084,2]
[407802055,1772809832118,-243.05,0.00015101,2]
[407802056,1772809832127,-191.47,0.00015234,2]
[407802057,1772809832136,-163.17298866,0.0001525,2]
[407802058,1772809832145,-137.7067289,0.0001525,2]
[407802059,1772809832156,-362.92309154,0.0001525,2]
[407802060,1772809832166,-166.66,0.00015403,2]
[407802061,1772809832175,-64.41690846,0.00015421,2]
[407802064,1772809837650,-89.58309154,0.00015421,2]
[407802066,1772809837660,-1161.54937712,0.00015437,2]
[407802068,1772809837671,-26.45062288,0.00015437,2]
[407802071,1772809837680,-977.0,0.00015468,2]
[407802072,1772809837690,-4256.4902911,0.00015487,2]
[407802073,1772809837700,-300.0,0.00015499,2]
[407802074,1772809837709,-207.74306871,0.000155,2]
[407802075,1772809837721,-1053.69693129,0.000155,2]
[407802076,1772809837731,-9355.50408634,0.000155,2]
[407802077,1772809837739,-500.0,0.00015622,2]
[407802078,1772809837749,-315.86799927,0.00015622,2]
[407802079,1772809837758,-468141.8922,0.00015623,2]
[407802080,1772809837767,-150.0,0.00015643,7]
[407802081,1772809837777,-286.935702,0.00015643,7]
[407802082,1772809837786,-423.871405,0.00015643,7]
[407802083,1772809837795,-560.807108,0.00015643,7]
[407802084,1772809837804,-697.742811,0.00015643,7]
[407802085,1772809837814,-834.678513,0.00015643,7]
[407802086,1772809837823,-971.614216,0.00015643,7]
[407802087,1772809837832,-1108.549919,0.00015643,7]
[407802088,1772809837842,-1245.485622,0.00015643,7]
[407802089,1772809837851,-1382.421324,0.00015643,7]
[407802090,1772809837861,-336.0,0.0001566,2]
[407802091,1772809837870,-206.27799803,0.000157,2]
[407802092,1772809837879,-345.42437259,0.000157,2]
[407802093,1772809837889,-402.38587973,0.000157,2]
[407802094,1772809837899,-484.57074714,0.000157,2]
[407802095,1772809837908,-5000.0,0.000157,2]
[407802096,1772809837918,-6001.0737,0.000157,2]
[407802097,1772809837927,-2500.0,0.000157,2]
[407802098,1772809837938,-358.98116355,0.00015722,2]
[407802099,1772809837948,-4101.118,0.00015723,2]
[407802100,1772809837960,-304.173,0.00015723,2]
[407802101,1772809837969,-9718.90833487,0.00015733,2]
[407802102,1772809837978,-199.85560761,0.00015733,2]
[407802103,1772809837987,-790.24070377,0.00015733,2]
[407802104,1772809837997,-746.5079976,0.00015733,2]
[407802105,1772809838008,-2453.94666285,0.00015733,2]
[407802106,1772809838018,-11305.69546243,0.00015733,2]
[407802107,1772809838027,-4360.19,0.0001575,2]
[407802108,1772809838037,-500.0,0.00015773,2]
[407802109,1772809838047,-500.0,0.00015773,2]
[407802110,1772809838056,-500.0,0.00015773,2]
[407802111,1772809838065,-500.0,0.00015773,2]
[407802113,1772809838075,-355.08533532,0.0001579,2]
[407802115,1772809838084,-151.0,0.00015797,2]
[407802117,1772809838093,-500.0,0.00015798,2]
[407802119,1772809838102,-521.28575476,0.00015798,2]
[407802121,1772809838111,-174.8442503,0.00015798,2]
[407802123,1772809838121,-273.35302444,0.00015798,2]
[407802124,1772809838131,-500.0,0.00015798,2]
[407802125,1772809838140,-1107.08843025,0.00015799,5]
[407802126,1772809838150,-1107.08843025,0.00015799,5]
[407802127,1772809838159,-500.0,0.00015799,2]
[407802128,1772809838170,-457.14352647,0.00015799,2]
[407802129,1772809838179,-500.0,0.00015799,2]
[407802130,1772809838188,-500.0,0.00015799,2]
[407802131,1772809838197,-500.0,0.00015799,2]
[407802132,1772809838208,-602.06361303,0.00015799,2]
[407802133,1772809838217,-500.0,0.00015799,2]
[407802134,1772809838228,-500.0,0.00015799,2]
[407802135,1772809838238,-500.0,0.00015799,2]
[407802136,1772809838252,-500.0,0.00015799,2]
[407802137,1772809838263,-500.0,0.00015799,2]
[407802138,1772809838273,-500.0,0.00015799,2]
[407802139,1772809838284,-500.0,0.00015799,2]
[407802140,1772809838293,-500.0,0.00015799,2]
[407802141,1772809838302,-500.0,0.00015799,2]
[407802142,1772809838312,-150.0,0.00015799,2]
[407802143,1772809838324,-682.34,0.00015799,2]
[407802144,1772809838333,-682.34,0.00015799,2]
[407802145,1772809838343,-682.34,0.00015799,2]
[407802146,1772809838352,-682.34,0.00015799,2]
[407802147,1772809838362,-682.34,0.00015799,2]
[407802148,1772809838372,-682.34,0.00015799,2]
[407802149,1772809838382,-682.34,0.00015799,2]
[407802150,1772809838391,-682.34,0.00015799,2]
[407802151,1772809838400,-682.34,0.00015799,2]
[407802152,1772809838409,-682.34,0.00015799,2]
[407802153,1772809838418,-2500000.0,0.000158,2]
[407802154,1772809838427,-599.09196006,0.00015833,2]
[407802155,1772809838437,-218.24,0.00015843,2]
[407802156,1772809838447,-250.0,0.00015876,2]
[407802157,1772809838459,-200.72181509,0.000159,2]
[407802158,1772809838468,-166.66,0.00015911,2]
[407802159,1772809838478,-2000.0,0.00015933,2]
[407802160,1772809838487,-258.69744367,0.0001596,2]
[407802161,1772809838496,-2000.0,0.00016033,2]
[407802162,1772809838505,-2000.0,0.00016033,2]
[407802163,1772809838515,-157.40983265,0.00016033,2]
[407802164,1772809838526,-594.77135875,0.00016033,2]
[407802165,1772809838535,-1253.62107365,0.00016033,2]
[407802166,1772809838545,-1817.24072097,0.00016033,2]
[407802167,1772809838554,-191.47,0.00016036,2]
[407802168,1772809838564,-420.0,0.0001608,2]
[407802169,1772809838573,-300.0,0.0001608,2]
[407802170,1772809838582,-200.0,0.00016093,2]
[407802171,1772809838592,-300.0,0.00016093,2]
[407802172,1772809838603,-500.0,0.00016093,2]
[407802173,1772809838612,-203.71480102,0.00016093,2]
[407802174,1772809838621,-300.0,0.00016093,2]
[407802175,1772809838630,-300.27779023,0.00016093,2]
[407802176,1772809838639,-500.0,0.00016096,2]
[407802177,1772809838648,-150.0,0.00016096,2]
[407802178,1772809838657,-468.71685107,0.00016119,2]
[407802179,1772809838667,-682.34,0.00016122,2]
[407802180,1772809838676,-2000.0,0.00016133,2]
[407802181,1772809838685,-2000.0,0.00016133,2]
[407802182,1772809838694,-150.0,0.00016133,2]
[407802183,1772809838708,-178.93204733,0.00016133,2]
[407802184,1772809838718,-300.0,0.00016133,2]
[407802185,1772809838728,-300.0,0.00016133,2]
[407802186,1772809838738,-600.0,0.00016133,2]
[407802187,1772809838747,-300.0,0.0001615,2]
[407802188,1772809838757,-500.0,0.0001615,2]
[407802189,1772809838766,-600.0,0.0001615,2]
[407802190,1772809838776,-3763.80067527,0.0001615,2]
[407802191,1772809838785,-250.0,0.0001615,2]
[407802192,1772809838795,-1680.0,0.00016157,2]
[407802193,1772809838804,-150.0,0.00016169,30]
[407802194,1772809838813,-500.0,0.00016173,2]
[407802195,1772809838823,-500.0,0.00016173,2]
[407802196,1772809838832,-500.0,0.00016173,2]
[407802197,1772809838841,-500.0,0.00016173,2]
[407802198,1772809838851,-500.0,0.00016173,2]
[407802199,1772809838860,-500.0,0.00016173,2]
[407802200,1772809838870,-500.0,0.00016173,2]
[407802201,1772809838879,-500.0,0.00016173,2]
[407802202,1772809838888,-500.0,0.00016173,2]
[407802203,1772809838897,-500.0,0.00016173,2]
[407802204,1772809838907,-500.0,0.00016173,2]
[407802205,1772809838916,-500.0,0.00016173,2]
[407802206,1772809838926,-556.1229892,0.00016173,2]
[407802207,1772809838935,-500.0,0.00016173,2]
[407802208,1772809838945,-500.0,0.00016173,2]
[407802209,1772809838957,-449.5306254,0.00016173,2]
[407802210,1772809838967,-530.88059829,0.00016173,2]
[407802211,1772809838976,-500.0,0.00016173,2]
[407802212,1772809838985,-9718.90833483,0.00016196,2]
[407802213,1772809838995,-11305.69546236,0.00016196,2]
[407802214,1772809839006,-296029.34577362,0.000162,5]
[407802215,1772809839015,-1000.0,0.00016223,2]
[407802216,1772809839025,-2000.0,0.00016233,2]
[407802217,1772809839034,-2000.0,0.00016233,2]
[407802218,1772809839044,-150.0,0.0001631,2]
[407802219,1772809839054,-150.0,0.0001631,2]
[407802220,1772809839063,-150.0,0.0001631,2]
[407802221,1772809839073,-500.0,0.00016321,2]
[407802222,1772809839087,-1000.0,0.00016321,2]
[407802223,1772809839096,-500.0,0.00016322,2]
[407802224,1772809839106,-500.0,0.00016322,2]
[407802225,1772809839116,-500.0,0.00016322,2]
[407802226,1772809839126,-500.0,0.00016322,2]
[407802227,1772809839136,-506.10912482,0.00016322,2]
[407802228,1772809839146,-2453.94666279,0.00016328,2]
[407802229,1772809839155,-151.0,0.00016333,2]
[407802230,1772809839167,-1500.0,0.00016333,2]
[407802231,1772809839177,-2800.840232,0.00016333,2]
[407802232,1772809839188,-290.99,0.00016333,2]
[407802233,1772809839199,-290.98,0.00016333,2]
[407802234,1772809839211,-290.98,0.00016333,7]
[407802235,1772809839221,-1780.0,0.00016333,7]
[407802236,1772809839231,-500.0,0.0001637,2]
[407802237,1772809839243,-166.66,0.0001642,2]
[407802238,1772809839255,-179.45599622,0.0001642,2]
[407802239,1772809839265,-500.0,0.00016422,2]
[407802240,1772809839275,-500.0,0.00016422,2]
[407802241,1772809839285,-500.0,0.00016422,2]
[407802242,1772809839296,-500.0,0.00016422,2]
[407802243,1772809839306,-287.83204793,0.00016422,2]
[407802244,1772809839315,-500.0,0.00016422,2]
[407802245,1772809839326,-500.0,0.00016422,2]
[407802246,1772809839336,-500.0,0.00016422,2]
[407802247,1772809839346,-500.0,0.00016422,2]
[407802248,1772809839355,-512.9597754,0.00016422,2]
[407802249,1772809839365,-500.0,0.00016422,2]
[407802250,1772809839375,-500.0,0.00016422,2]
[407802251,1772809839385,-500.0,0.00016422,2]
[407802252,1772809839395,-499.50490111,0.00016422,2]
[407802253,1772809839404,-199.85560761,0.00016428,2]
[407802254,1772809839414,-746.50799756,0.00016566,2]
[407802255,1772809839423,-510.0,0.0001663,2]
[407802256,1772809839433,-429.40616332,0.00016644,2]
[407802257,1772809839444,-9718.90833483,0.00016659,2]
[407802258,1772809839458,-11305.69546236,0.00016659,2]
[407802259,1772809839467,-1000.0,0.00016721,2]
[407802260,1772809839481,-1000.0,0.00016721,2]
[407802261,1772809839491,-1000.0,0.00016721,2]
[407802263,1772809839500,-1000.0,0.00016721,2]
[407802265,1772809839510,-500.0,0.00016721,2]